Cogmind - Beta 14 @@@ ROGUE MODE // 2024.08.18 @ 23:24:55 Player: HourglassLad Result: Destroyed by D-53 Grenadier with Mini Grenade Launcher Performance ------------- Evolutions (0) 0 Regions Visited (2) 400 Robots Destroyed (10) 50 Value Destroyed (222) 222 Prototype IDs (2) 40 Alien Tech Used (0) 0 Bonus (0) 0 TOTAL SCORE: 712 Bonus ------- None Cogmind --------- Core Integrity 0/250 Matter 300/300 Energy 99/100 System Corruption 0% Temperature Cool (17) Movement Core (50) Location -10/Mines Parts ------- > --- POWER (1) -------- (None) > --- PROPULSION (2) --- (None) > --- UTILITY (2) ------ (None) > --- WEAPON (2) ------- (None) > --- INVENTORY (5) ---- Light Ion Engine Wheel Heat Sink Seismic Detector Mining Laser Peak State ------------ > --- POWER ------------ Light Ion Engine > --- PROPULSION ------- Compact Wheel Compact Wheel > --- UTILITY ---------- Small Storage Unit Improved Terrain Scanner > --- WEAPON ----------- EM Pulse Gun Small Laser > --- INVENTORY -------- Light Ion Engine Aluminum Leg Aluminum Leg Medium Laser [Rating: 9] Favorites ----------- Power Ion Engine Engine Ion Engine Propulsion Compact Wheel Treads Light Treads Leg Aluminum Leg Wheel Compact Wheel Utility Small Storage Unit Device Improved Terrain Scanner Storage Small Storage Unit Weapon Small Laser Energy Gun Small Laser Special Weapon Mining Laser Build | -11 -10 -10 ------- Run | Yrd Mat Min Slots Evolved . | . . . Power . | . . . Propulsion . | . . . Utility . | . . . Weapon . | . . . Parts Attached 14 | 9 5 . Power 2 | 1 1 . Engine 2 | 1 1 . Core . | . . . Reactor . | . . . Propulsion 5 | 4 1 . Treads 1 | 1 . . Leg 1 | . 1 . Wheel 3 | 3 . . Hover . | . . . Flight . | . . . Utility 2 | 2 . . Device 1 | 1 . . Storage 1 | 1 . . Processor . | . . . Hackware . | . . . Protection . | . . . Artifact . | . . . Weapon 5 | 2 3 . Energy Gun 4 | 2 2 . Energy Cannon . | . . . Ballistic Gun . | . . . Ballistic Cannon . | . . . Launcher . | . . . Special Weapon 1 | . 1 . Impact Weapon . | . . . Slashing Weapon . | . . . Piercing Weapon . | . . . Special Melee Weapon . | . . . Unidentified Prototypes . | . . . Parts Lost 7 | . 6 1 Power . | . . . Propulsion 2 | . 2 . Utility 1 | . 1 . Weapon 4 | . 3 1 Highest Loss Streak 4 | . 4 1 To Critical Strikes . | . . . Average Slot Usage (%) 83 | . 85 69 Engine 14 | . 14 14 Leg 9 | . 8 14 Wheel 8 | . 9 . Device 9 | . 10 . Storage 14 | . 14 14 Energy Gun 26 | . 26 26 Peak Build Rating 9 | 9 9 5 Average Rating 6 | 5 7 4 On Entrance 4 | . 9 5 Naked Turns 1 | . . 1 Heaviest Build 14 | 12 14 13 Greatest Support 32 | 32 32 10 Greatest Overweight (x) 1 | . 1 1 Average Overweight (x) . | . . . Largest Inventory Capacity 8 | 8 8 8 Average Capacity 7 | 6 8 7 Most Carried 7 | 7 7 7 Average Carried 6 | 3 6 6 Final Capacity 8 | 8 8 5 Final Carried 7 | 7 7 5 Class Distribution -------------------- 100% | Mutant Dominant Class ---------------- Mutant | -10/Materials Mutant | -10/Mines Resources | -11 -10 -10 ----------- Run | Yrd Mat Min Matter Collected 369 | 182 187 . Remotely . | . . . Salvage Created 238 | 13 209 16 Parts 18 | 6 12 . Haulers Intercepted . | . . . Recyclers Shooed . | . . . Parts Field Recycled . | . . . Retrieved Matter . | . . . Parts Self-Destructed . | . . . Prevented . | . . . Kills | -11 -10 -10 ------- Run | Yrd Mat Min Combat Hostiles Destroyed 9 | . 8 1 Guns 9 | . 8 1 Classes Destroyed 5 | 1 3 1 Builder 1 | . 1 . Tunneler 1 | 1 . . Swarmer 3 | . 3 . Grunt 5 | . 5 . Assembled 1 | . . 1 Best Kill Streak 3 | 1 3 1 Combat Bots Only 3 | . 3 1 Max Kills in Single Turn 1 | 1 1 1 Gunslinging . | . . . Exploded . | . . . Melee . | . . . Uniques/NPCs Destroyed . | . . . Combat | -11 -10 -10 -------- Run | Yrd Mat Min Hostile Shots Fired 66 | . 63 3 Missed 6 | . 6 . Damage Taken 764 | . 652 112 Core 263 | . 184 79 Absorbed by Shields . | . . . Core Remaining (%) 100 | 100 . . Volleys Fired 35 | 1 30 4 Largest 2 | 2 2 2 Hottest 150 | 80 150 90 Shots Fired 63 | 2 53 8 Gun 58 | 2 48 8 Cannon . | . . . Launcher . | . . . Special 5 | . 5 . Kinetic . | . . . Thermal 60 | 1 51 8 Explosive . | . . . Electromagnetic 3 | 1 2 . Robot Hit Streak 9 | 1 9 7 Robot Miss Streak 5 | 1 5 2 Penetration Max . | . . . Secondary Targets . | . . . Shots Hit Robots 39 | 1 32 6 Core Hits 20 | 1 16 3 Critical Kills . | . . . Critical Parts Destroyed . | . . . Critical Strikes 2 | . 2 . Burn 2 | . 2 . Melee Attacks . | . . . Impact . | . . . Slashing . | . . . Piercing . | . . . Sneak Attacks . | . . . Combat Hostiles . | . . . Follow-up Attacks . | . . . Damage Inflicted 646 | 22 543 81 Guns 498 | 22 395 81 Cannons . | . . . Explosions 100 | . 100 . Melee . | . . . Ramming . | . . . Kinetic . | . . . Thermal 621 | 10 530 81 Explosive . | . . . Electromagnetic 25 | 12 13 . Impact . | . . . Slashing . | . . . Piercing . | . . . Highest Corruption . | . . . Average Corruption . | . . . Corruption Purged . | . . . Corruption Blocked . | . . . Overload Shots . | . . . Overflow Damage 41 | . 41 . Projectiles . | . . . Explosions 41 | . 41 . Melee . | . . . Knockbacks . | . . . Impact . | . . . Kinetic . | . . . Secondary . | . . . Self-Inflicted Damage 52 | . 52 . Shots 1 | . 1 . Rammed . | . . . Targets Rammed . | . . . Kicked . | . . . Crushed . | . . . Highest Temperature 447 | 18 447 120 Average Temperature 140 | 12 153 63 Received Heat Transfer 276 | . 276 . Effects 3 | . 3 . Shutdowns 2 | . 2 . Matter Decay 1 | . 1 . Siege Activations . | . . . Robots Corrupted . | . . . Combat Hostiles . | . . . Parts Fried . | . . . Impact Corruptions . | . . . Robots Melted . | . . . Combat Hostiles . | . . . Parts Melted 1 | . 1 . Heat Transferred 1612 | 25 1376 211 Parts Sabotaged . | . . . Parts Stolen . | . . . Parts Stripped . | . . . Power Chain Reactions 1 | . 1 . Alert | -11 -10 -10 ------- Run | Yrd Mat Min Peak Influence 185 | 5 185 5 Initial 5 | . 3 5 Average 56 | 1 72 4 Maximum Alert Level . | . . . Low Security (%) 100 | 100 100 100 Level 1 . | . . . Level 2 . | . . . Level 3 . | . . . Level 4 . | . . . Level 5 . | . . . High Security . | . . . Max Security . | . . . Squads Dispatched 3 | . 3 . Investigation 1 | . 1 . Extermination . | . . . Reinforcement 2 | . 2 . Assault . | . . . Garrison . | . . . Intercept . | . . . Searches Triggered . | . . . Construction Impeded . | . . . Haulers Reinforced . | . . . Active Scanning Responses . | . . . Cargo Convoy Interrupts . | . . . Stealth | -11 -10 -10 --------- Run | Yrd Mat Min Distress Signals . | . . . Communications Jammed . | . . . Distress Signals . | . . . Times Spotted 19 | . 15 4 Peak Tracking Total 3 | . 3 2 Tactical Retreats . | . . . Traps | -11 -10 -10 ------- Run | Yrd Mat Min Traps Triggered 1 | . 1 . Indirectly . | . . . Trap Hack Attempts . | . . . Triggered . | . . . Disarmed . | . . . Reprogrammed . | . . . Reused . | . . . Traps Extracted . | . . . Installed . | . . . Triggered . | . . . Machines | -11 -10 -10 ---------- Run | Yrd Mat Min Machines Disabled 1 | . 1 . Max in Single Turn 1 | . 1 . Machines Repaired . | . . . Machines Dismantled . | . . . Machines Sabotaged . | . . . Overloaded Fab Kills . | . . . Hacking | -11 -10 -10 --------- Run | Yrd Mat Min Machines Accessed 2 | . 2 . Terminals 2 | . 2 . Fabricators . | . . . Repair Stations . | . . . Recycling Units . | . . . Scanalyzers . | . . . Garrison Access . | . . . Total Hacks 6 | . 6 . Successful 2 | . 2 . Failed 4 | . 4 . Catastrophic 2 | . 2 . Database Lockouts . | . . . Manual 3 | . 3 . Terminals 6 | . 6 . Fabricators . | . . . Repair Stations . | . . . Recycling Units . | . . . Scanalyzers . | . . . Garrison Access . | . . . Terminal Hacks 2 | . 2 . Prototype ID Bank 1 | . 1 . Reinforcement Status 1 | . 1 . Fabricator Hacks . | . . . Repair Station Hacks . | . . . Recycling Unit Hacks . | . . . Scanalyzer . | . . . Garrison Access Hacks . | . . . Unauthorized Hacks . | . . . Terminals . | . . . Fabricators . | . . . Repair Stations . | . . . Recycling Units . | . . . Scanalyzers . | . . . Garrison Access . | . . . Data Cores Recovered . | . . . Used . | . . . Hacking Detections 2 | . 2 . Full Trace Events . | . . . Feedback Events . | . . . Feedback Blocked . | . . . Robot Schematics Acquired . | . . . Robots Built . | . . . Authchips . | . . . Time . | . . . Total Robot Build Rating . | . . . Part Schematics Acquired . | . . . Parts Built . | . . . Authchips . | . . . Time . | . . . Total Part Build Rating . | . . . Parts Repaired . | . . . Time . | . . . Parts Recycled . | . . . Recycled Matter . | . . . Retrieved Matter . | . . . Retrieved Components . | . . . Parts Scanalyzed . | . . . Part Schematics Acquired . | . . . Parts Damaged . | . . . Bothacking | -11 -10 -10 ------------ Run | Yrd Mat Min Used RIF Installer . | . . . Robots Hacked . | . . . Non-combat . | . . . Combat . | . . . Robot Hacks Applied . | . . . Relay Couplers Released . | . . . Fabnet Peak Effective % . | . . . Robots Rewired . | . . . Allies Hacked . | . . . Hacks Repelled . | . . . Allies | -11 -10 -10 -------- Run | Yrd Mat Min Total Allies . | . . . Largest Group . | . . . Highest-Rated Group . | . . . Highest-Rated Ally . | . . . Total Orders . | . . . Ally Attacks . | . . . Total Damage . | . . . Kills . | . . . Allies Corrupted . | . . . Allies Melted . | . . . Intel | -11 -10 -10 ------- Run | Yrd Mat Min Robot Analysis Total . | . . . Derelict Logs Recovered . | . . . Drone Launches . | . . . Drone Recoveries . | . . . Exploration | -11 -10 -10 ------------- Run | Yrd Mat Min Turns Passed 650 | 85 502 63 Spaces Moved 336 | 60 247 29 Core 7 | 4 . 3 Treads 3 | 3 . . Legs 161 | . 135 26 Wheels 165 | 53 112 . Hover . | . . . Flight . | . . . Fastest Speed 50 | 50 100 50 Average Speed 142 | 99 149 175 Slowest Speed 190 | 160 190 190 Overloaded Moves . | . . . Propulsion Burnouts . | . . . Robots Hopped . | . . . Cave-ins Triggered . | . . . Exploration Rate (%) 18 | 4 38 14 Regions Visited 2 Branch Regions 1 Pre-discovered Areas . | . . . Known Exits Taken . | . . . Unknown Exits Taken 2 | 1 1 . Scrap Searched . | . . . Spaces Dug . | . . . Terrain Destroyed 6 | . 6 . Melee . | . . . Projectile 2 | . 2 . AOE 4 | . 4 . Terrain Rammed . | . . . Walls Destroyed . | . . . Machines Disabled . | . . . Actions | -11 -10 -10 --------- Run | Yrd Mat Min Total 431 | 81 317 33 Wait 32 | . 32 . Move 334 | 59 246 29 Hop . | . . . Pick Up 11 | 8 3 . Fast Attach 9 | 8 1 . Attach 4 | 1 3 . Detach 2 | 2 . . Swap 1 | . 1 . Drop 3 | 2 1 . Fire 35 | 1 30 4 Melee . | . . . Ram . | . . . Kick . | . . . Crush . | . . . Escape Stasis . | . . . Rewire . | . . . Trap . | . . . Miscellaneous . | . . . Route ------- -11/Scrapyard -10/Materials -10/Mines History --------- Turn | Location | Event 21 | -11/Scrapyard | Discovered new exit (range 16) 86 | -11/Scrapyard | Entered Materials 290 | -10/Materials | Core integrity fell below 50% 332 | -10/Materials | Lost 4 parts (2n2w) 334 | -10/Materials | Discovered new exit (range 16) 348 | -10/Materials | Build established: Mutant 588 | -10/Materials | Entered Mines 622 | -10/Mines | Assembled infested the area 627 | -10/Mines | Assisted by a Guerilla fighting off Assembled 650 | -10/Mines | Core integrity fell below 20% 650 | -10/Mines | Released all parts (4) 651 | -10/Mines | Destroyed by D-53 Grenadier with Mini Grenade Launcher Last Messages --------------- dispatching Demolisher response squad. 00627_ A derelict emerges from the shadows: "You need to get out of here! I've been tracking a group of Assembled to figure out where they're coming from, and they're closing on this area, come on!" 00630_ 8S-IBK(h): "I'll hold them off! Go on ahead or try to find another way!" 00640_ HV Slug penetrates Wall. 00642_ as-85113 destroyed. 00643_ as-58999 destroyed. 00649_ C-30 ARC bursts open, deploying its payload. 00649_ D-53 Grenadier unfolds itself. 00649_ 8S-IBK(h) destroyed. 00649_ Med. Laser destroyed. 00650_ Released Sml. Laser. 00650_ Released Ion Engine. 00650_ Released Aluminum Leg. 00650_ Released Sml. Storage Unit. Map ----- +----------------------------------------------------+ | ????????????? ??????? ?????????????????????????? | | ????????????? ??????? #?????????????????????????? | | ????????????? ?????# #?????????????????????????? | | ?????????????# ?????# #?????????????????????????? | | ?????????????# ?????# #?????????????????????????? | | ???????###??## ????# #?????????????????????????? | | ??????## ### ????# #?????????????????????????? | | ??????# #???## #?????????????????????????? | | ??????# #??## ##????????????????????????? | | ???????# #### #????????????????????????? | | ?????????# ##???????????????????????? | | ??????????# """ #???????????????????????? | | ??# ####### """ ##### #??????????????????????? | | ??# """ #??## #?????????????????????? | | ??# #????# #????????????????????? | | ??????####### ##?????# #????????????????????? | | ????????????## ##???????# ##????????????????????? | | ?????????????# #?????????###?????????????????????? | | ?????????????# #??????#####??????????????????????? | | ?????????????# #???#### ##?????????????????????? | | ?????????????# ##### ###???????????????????? | | ????????????## ## = ####????????????????? | | ???????????## d ![ ; #????????????????? | | ???????????# d * %= ##?????????????????? | | ???????????## ### #??????????????????? | | ????????????##??## @ #??????????????????? | | ?????????????????## # #??????????????????? | | ??????????????????#### ## ##? #??????????????????? | | ?????????????????????##?# a??? ?????????????????? | | ???????????????????????? ????? ????????????????? | | ???????????????????????? ????? ??????????????? | | ????????????????????????# ??????##?????????????? | | ????????????????????????## ????????????????????? | | ??????????????????????????# ????????????????????? | | ???????????????????????????###???????????????????? | | ?????????????????????????????????????????????????? | | ?????????????????????????????????????????????????? | | ?????????????????????????????????????????????????? | | ?????????????????????????????????????????????????? | | ?????????????????????????????????????????????????? | | ?????????????????????????????????????????????????? | | ?????????????????????????????????????????????????? | | ?????????????????????????????????????????????????? | | ?????????????????????????????????????????????????? | | ?????????????????????????????????????????????????? | | ?????????????????????????????????????????????????? | | ?????????????????????????????????????????????????? | | ?????????????????????????????????????????????????? | | ?????????????????????????????????????????????????? | | | +----------------------------------------------------+ Best States ------------- Heat Dissipation 25 Energy Generation 10 Energy Capacity 250 Matter Stores 300 Matter Capacity 300 Sight Range 16 Terrain Scan Range 16 Terrain Scan Density 10 Evasion (%) 40 Recoil Reduction 1 Item Schematics ----------------- None Robot Schematics ------------------ None Fabricated ------------ Nothing Alien Tech Used ----------------- None Achievements -------------- None Challenges ------------ None Game ------ Seed LightningCannonMultirail Manual? 0 Play Time 00:06:20 Cumulative 26.8 hours Start 2024.08.18 @ 23:06:54 End 2024.08.18 @ 23:24:55 Sessions 2 Manual Loads 0 Difficulty Rogue Special Mode None Game No. 51 Rogue 51 Adventurer 0 Explorer 0 Win Type - Total 0 Types 0/0/0/0/0/0/0/0/0 Lore% 11 Gallery% 30 Achievement% 23 Wizard Run 0 Options --------- Layout 1 ASCII 0 Keyboard 1 Movement Numpad Keybinds 0 Fullscreen 1 Font 24/Smallcaps Map View 50x35 Zoom Use 0% Tactical HUD 1 Map Filters NONE Filters NONE Steam 1 RUN: 6fa2531a-6093-4fd1-b8ae-defa3e80cb65